[Event "17th Memorial Lezcano Montalvo 2025"]
[Site "Gran Canaria"]
[Date "2025.04.19"]
[Round "8.8"]
[White "Martinez Ramirez, Lennis"]
[Black "Brito Garcia, Alfredo"]
[Result "0-1"]
[Annotator "RC"]
[ECO "A62"]
[WhiteElo "2443"]
[BlackElo "2214"]
[PlyCount "88"]
[EventDate "2025.04.13"]
[EventType "swiss"]
[EventCountry "ESP"]
[SourceTitle "playchess.com"]
[Source "ChessBase"]
[SourceQuality "1"]
[TimeControl "5400+30"]

1. d4 {[%emt 0:00:42]} g6 {[%emt 0:00:07]} 2. Nf3 {[%emt 0:00:28]} Bg7 {[%emt 0:00:17]} 3. c4 {[%emt 0:00:08]} c5 {[%emt 0:02:00]} 4. d5 {[%emt 0:00:11]} d6 {[%emt 0:00:58]} 5. g3 {[%emt 0:02:39]} Nf6 {[%emt 0:02:44]} 6. Nc3 {[%emt 0:00:30]} O-O {[%emt 0:00:22]} 7. Bg2 {[%emt 0:00:12]} e6 {[%emt 0:02:01]} 8. O-O {[%emt 0:00:29]} exd5 {[%emt 0:00:50]} 9. cxd5 {[%emt 0:00:03]} Re8 {[%emt 0:00:08]} 10. Bf4 {[%emt 0:01:59]} h6 {[%emt 0:01:04]} 11. h3 {[%emt 0:02:21]} g5 {[%emt 0:03:22]} 12. Bc1 {[%emt 0:00:48]} Nbd7 {[%emt 0:05:03]} 13. a4 {[%emt 0:07:00]} b6 {[%emt 0:03:54]} 14. Rb1 {[%emt 0:12:18]} Nf8 {[%emt 0:15:43]} 15. Qc2 {[%emt 0:04:42]} Ng6 {[%emt 0:03:15]} 16. b4 {[%emt 0:07:57]} g4 {[%emt 0:02:36]} 17. hxg4 {[%emt 0:00:41]} Nxg4 {[%emt 0:00:05]} 18. bxc5 {[%emt 0:01:06]} bxc5 {[%emt 0:00:07]} 19. Nb5 {[%emt 0:05:39]} Qe7 {[%emt 0:10:30]} 20. Re1 {[%emt 0:06:24]} Rb8 {[%emt 0:02:46]} 21. Bd2 {[%emt 0:09:24]} a6 {[%emt 0:05:37]} 22. Na3 {[%emt 0:01:03]} Rxb1 {[%emt 0:00:07]} 23. Qxb1 {[%emt 0:00:34]} Qe4 {[%emt 0:01:30]} 24. Qb3 {[%emt 0:02:45]} Bf5 {[%emt 0:07:57]} 25. e3 {[%emt 0:14:41]} Qd3 {[%emt 0:02:38]} 26. Qxd3 {[%emt 0:02:45]} Bxd3 {[%emt 0:00:03]} 27. Nh4 {[%emt 0:04:33]} Nxh4 {[%emt 0:00:23]} 28. gxh4 {[%emt 0:00:03]} Rb8 {[%emt 0:04:27]} 29. Bf1 {[%emt 0:01:21]} Ne5 {[%emt 0:03:09]} 30. Bg2 {[%emt 0:05:01]} Rb3 {[%emt 0:02:06]} 31. Bc1 {[%emt 0:00:06]} Bg6 {[%emt 0:02:55]} 32. Rf1 {[%emt 0:01:18]} Nd3 {[%emt 0:01:40]} 33. Nc4 {[%emt 0:02:14]} Rc3 {[%emt 0:00:08]} 34. Nxd6 {[%emt 0:00:20]} Nxc1 {[%emt 0:01:22]} 35. Nb7 {[%emt 0:00:24]} Ne2+ {[%emt 0:02:07]} 36. Kh1 {[%emt 0:00:54]} c4 {[%emt 0:01:38]} 37. d6 {[%emt 0:00:14]} Rd3 {[%emt 0:00:38]} 38. Re1 {[%emt 0:02:11]} Nc3 {[%emt 0:00:17]} 39. e4 {[%emt 0:01:19]} Be5 {[%emt 0:00:28]} 40. f4 {[%emt 0:00:53]} Bxf4 {[%emt 0:00:39]} 41. e5 {[%emt 0:00:25]} Bg3 {[%emt 0:00:20]} 42. Rg1 {[%emt 0:00:52]} Ne2 {[%emt 0:01:49]} 43. Rb1 {[%emt 0:01:25]} Rd4 {[%emt 0:00:26]} 44. Rf1 {[%emt 0:00:51]} Rxh4+ {[%emt 0:00:17]} 0-1

[Event "17th Memorial Lezcano Montalvo 2025"]
[Site "Gran Canaria"]
[Date "2025.04.19"]
[Round "8.9"]
[White "Narciso Dublan, Marc"]
[Black "Ambartsumova, Karina"]
[Result "*"]
[Annotator "RC"]
[ECO "E73"]
[WhiteElo "2376"]
[BlackElo "2405"]
[PlyCount "22"]
[EventDate "2025.04.13"]
[EventType "swiss"]
[EventCountry "ESP"]
[SourceTitle "playchess.com"]
[Source "ChessBase"]
[SourceQuality "1"]
[TimeControl "5400+30"]

1. d4 {[%emt 0:00:30]} Nf6 {[%emt 0:02:34]} 2. c4 {[%emt 0:00:05]} g6 {[%emt 0:00:05]} 3. Nc3 {[%emt 0:00:05]} Bg7 {[%emt 0:00:08]} 4. e4 {[%emt 0:00:06]} d6 {[%emt 0:00:04]} 5. Be2 {[%emt 0:01:49]} O-O {[%emt 0:00:58]} 6. g4 {[%emt 0:01:27]} e5 {[%emt 0:02:47]} 7. d5 {[%emt 0:00:05]} c6 {[%emt 0:05:36]} 8. h4 {[%emt 0:00:25]} Ne8 {[%emt 0:05:47]} 9. Be3 {[%emt 0:02:59]} f5 {[%emt 0:04:21]} 10. gxf5 {[%emt 0:00:16]} gxf5 {[%emt 0:00:08]} 11. exf5 {[%emt 0:00:05]} Bxf5 {[%emt 0:00:28]} *

[Event "17th Memorial Lezcano Montalvo 2025"]
[Site "Gran Canaria"]
[Date "2025.04.19"]
[Round "8.9"]
[White "Tytynnik, Artem"]
[Black "Kovchan, Alexander"]
[Result "0-1"]
[Annotator "RC"]
[ECO "A62"]
[WhiteElo "2209"]
[BlackElo "2433"]
[PlyCount "67"]
[EventDate "2025.04.13"]
[EventType "swiss"]
[EventCountry "ESP"]
[SourceTitle "playchess.com"]
[Source "ChessBase"]
[SourceQuality "1"]
[TimeControl "5400+30"]

1. d4 {[%emt 1:31:00]} g6 2. Nf3 Bg7 3. c4 c5 4. d5 d6 5. g3 Nf6 6. Nc3 O-O 7. Bg2 e6 8. O-O exd5 9. cxd5 Re8 10. Bf4 h6 11. h3 g5 12. Bc1 Nbd7 13. a4 b6 14. Rb1 Nf8 15. Qc2 Ng6 16. b4 g4 17. hxg4 Nxg4 18. bxc5 bxc5 19. Nb5 Qe7 20. Re1 Rb8 21. Bd2 a6 22. Na3 Rxb1 23. Qxb1 Qe4 24. Qb3 Bf5 25. e3 Qd3 26. Qxd3 Bxd3 27. Nh4 Nxh4 28. gxh4 Rb8 29. Bf1 Ne5 30. Bg2 Rb3 31. Bc1 Bg6 32. Rf1 Nd3 33. Nc4 Rc3 34. Nxd6 {[%emt 0:00:00]} 0-1

[Event "17th Memorial Lezcano Montalvo 2025"]
[Site "Gran Canaria"]
[Date "2025.04.19"]
[Round "8.10"]
[White "Fiorito, Francisco"]
[Black "Garcia Brion, Eduardo"]
[Result "1/2-1/2"]
[Annotator "RC"]
[ECO "A04"]
[WhiteElo "2431"]
[BlackElo "2171"]
[PlyCount "25"]
[EventDate "2025.04.13"]
[EventType "swiss"]
[EventCountry "ESP"]
[SourceTitle "playchess.com"]
[Source "ChessBase"]
[SourceQuality "1"]
[TimeControl "5400+30"]

1. Nf3 {[%emt 0:00:03]} e6 {[%emt 0:00:42]} 2. b3 {[%emt 0:01:53]} b6 {[%emt 0:00:20]} 3. Bb2 {[%emt 0:00:09]} Bb7 {[%emt 0:00:11]} 4. c4 {[%emt 0:00:35]} Nf6 {[%emt 0:01:03]} 5. e3 {[%emt 0:00:11]} g6 {[%emt 0:04:58]} 6. Nc3 {[%emt 0:01:47]} Bg7 {[%emt 0:00:07]} 7. Qc2 {[%emt 0:02:59]} d6 {[%emt 0:01:12]} 8. d4 {[%emt 0:01:03]} O-O {[%emt 0:04:46]} 9. Be2 {[%emt 0:00:55]} Qe7 {[%emt 0:06:23]} 10. e4 {[%emt 0:07:12]} c5 {[%emt 0:03:31]} 11. e5 {[%emt 0:05:14]} dxe5 {[%emt 0:00:11]} 12. dxe5 {[%emt 0:00:06]} Nfd7 {[%emt 0:01:16]} 13. Nb5 {[%emt 0:31:25]} 1/2-1/2

[Event "17th Memorial Lezcano Montalvo 2025"]
[Site "Gran Canaria"]
[Date "2025.04.19"]
[Round "8.11"]
[White "Strikovic, Aleksa"]
[Black "Krilovs, Nikolajs"]
[Result "1-0"]
[Annotator "RC"]
[ECO "A07"]
[WhiteElo "2367"]
[BlackElo "2112"]
[PlyCount "102"]
[EventDate "2025.04.13"]
[EventType "swiss"]
[EventCountry "ESP"]
[SourceTitle "playchess.com"]
[Source "ChessBase"]
[SourceQuality "1"]
[TimeControl "5400+30"]

1. Nf3 {[%emt 0:01:18]} d5 {[%emt 0:00:32]} 2. g3 {[%emt 0:00:12]} Bf5 {[%emt 0:00:09]} 3. c4 {[%emt 0:00:56]} c6 {[%emt 0:03:16]} 4. Qb3 {[%emt 0:00:44]} Qb6 {[%emt 0:01:28]} 5. cxd5 {[%emt 0:01:43]} Qxb3 {[%emt 0:01:37]} 6. axb3 {[%emt 0:00:06]} Bxb1 {[%emt 0:00:36]} 7. dxc6 {[%emt 0:00:56]} Nxc6 {[%emt 0:01:23]} 8. Rxb1 {[%emt 0:00:06]} e5 {[%emt 0:11:37]} 9. d3 {[%emt 0:01:29]} Nf6 {[%emt 0:00:39]} 10. Bg2 {[%emt 0:00:08]} Bd6 {[%emt 0:05:07]} 11. Nd2 {[%emt 0:03:33]} Rc8 {[%emt 0:01:48]} 12. Nc4 {[%emt 0:01:17]} Bb8 {[%emt 0:01:02]} 13. Bd2 {[%emt 0:03:27]} O-O {[%emt 0:02:32]} 14. b4 {[%emt 0:11:51]} b5 {[%emt 0:11:48]} 15. Na3 {[%emt 0:03:49]} a6 {[%emt 0:05:39]} 16. Rc1 {[%emt 0:00:08]} Nd4 {[%emt 0:11:28]} 17. Rc3 {[%emt 0:02:31]} Rcd8 {[%emt 0:01:55]} 18. e3 {[%emt 0:01:29]} Ne6 {[%emt 0:00:07]} 19. Ke2 {[%emt 0:00:11]} Rd6 {[%emt 0:11:43]} 20. Rc6 {[%emt 0:13:08]} Rxc6 {[%emt 0:02:20]} 21. Bxc6 {[%emt 0:00:06]} Bd6 {[%emt 0:00:23]} 22. Ra1 {[%emt 0:03:02]} Rb8 {[%emt 0:03:10]} 23. Bg2 {[%emt 0:02:17]} Nc7 {[%emt 0:02:16]} 24. Nc2 {[%emt 0:00:41]} Rb6 {[%emt 0:01:13]} 25. Rc1 {[%emt 0:06:27]} h5 {[%emt 0:01:32]} 26. Na1 {[%emt 0:03:15]} Nfd5 {[%emt 0:00:41]} 27. Nb3 {[%emt 0:00:47]} f5 {[%emt 0:00:52]} 28. e4 {[%emt 0:01:25]} Ne7 {[%emt 0:01:51]} 29. Be3 {[%emt 0:05:18]} Rc6 {[%emt 0:00:39]} 30. Bc5 {[%emt 0:00:17]} Bxc5 {[%emt 0:01:01]} 31. exf5 {[%emt 0:01:02]} Rd6 {[%emt 0:01:36]} 32. Rxc5 {[%emt 0:02:11]} Ncd5 {[%emt 0:00:23]} 33. Be4 {[%emt 0:00:02]} Kf7 {[%emt 0:00:37]} 34. Nd2 {[%emt 0:00:06]} Nxb4 {[%emt 0:01:02]} 35. Nf3 {[%emt 0:01:45]} Kf6 {[%emt 0:01:48]} 36. Rxe5 {[%emt 0:00:14]} Nbc6 {[%emt 0:01:22]} 37. Rc5 {[%emt 0:00:46]} Nd4+ {[%emt 0:00:08]} 38. Nxd4 {[%emt 0:00:24]} Rxd4 {[%emt 0:00:04]} 39. Kd2 {[%emt 0:01:39]} Ra4 {[%emt 0:01:24]} 40. Rc7 {[%emt 0:03:06]} Ra1 {[%emt 0:01:46]} 41. Rb7 {[%emt 0:01:10]} Rf1 {[%emt 0:01:27]} 42. Rb6+ {[%emt 0:04:54]} Kf7 {[%emt 0:00:06]} 43. Ke3 {[%emt 0:00:11]} Re1+ {[%emt 0:00:30]} 44. Kf3 {[%emt 0:02:32]} Rb1 {[%emt 0:00:15]} 45. Rxa6 {[%emt 0:00:05]} Rxb2 {[%emt 0:00:06]} 46. h3 {[%emt 0:00:02]} b4 {[%emt 0:01:40]} 47. Rb6 {[%emt 0:00:42]} Nc8 {[%emt 0:01:40]} 48. Bd5+ {[%emt 0:21:02]} Ke7 {[%emt 0:00:09]} 49. Re6+ {[%emt 0:00:00]} Kf8 {[%emt 0:00:31]} 50. Ra6 {[%emt 0:01:00]} Ke7 {[%emt 0:00:11]} 51. Re6+ {[%emt 0:00:00]} Kf8 {[%emt 0:00:13]} 1-0

[Event "17th Memorial Lezcano Montalvo 2025"]
[Site "Gran Canaria"]
[Date "2025.04.19"]
[Round "8.12"]
[White "Kovchan, Alexander"]
[Black "Garcia Padron, Juan"]
[Result "*"]
[Annotator "RC"]
[ECO "A65"]
[WhiteElo "2433"]
[BlackElo "2155"]
[PlyCount "32"]
[EventDate "2025.04.13"]
[EventType "swiss"]
[EventCountry "ESP"]
[SourceTitle "playchess.com"]
[Source "ChessBase"]
[SourceQuality "1"]
[TimeControl "5400+30"]

1. e4 {[%emt 0:05:00]} d6 {[%emt 0:00:03]} 2. d4 {[%emt 0:00:07]} Nf6 {[%emt 0:00:03]} 3. f3 {[%emt 0:00:16]} g6 {[%emt 0:04:34]} 4. c4 {[%emt 0:00:06]} Bg7 {[%emt 0:00:12]} 5. Nc3 {[%emt 0:00:06]} O-O {[%emt 0:00:09]} 6. Nge2 {[%emt 0:00:03]} c5 {[%emt 0:00:10]} 7. d5 {[%emt 0:00:04]} e6 {[%emt 0:00:04]} 8. Ng3 {[%emt 0:00:05]} exd5 {[%emt 0:00:03]} 9. cxd5 {[%emt 0:00:07]} a6 {[%emt 0:00:02]} 10. a4 {[%emt 0:00:06]} h5 {[%emt 0:00:08]} 11. Bg5 {[%emt 0:00:10]} Nbd7 {[%emt 0:00:04]} 12. Be2 {[%emt 1:30:20]} Qc7 {[%emt 0:00:04]} 13. O-O {[%emt 0:00:28]} c4 {[%emt 0:00:17]} 14. Be3 {[%emt 0:08:49]} Rb8 {[%emt 0:04:37]} 15. a5 {[%emt 0:03:07]} h4 {[%emt 0:00:30]} 16. Nh1 {[%emt 0:00:06]} Nc5 {[%emt 0:00:25]} *

[Event "17th Memorial Lezcano Montalvo 2025"]
[Site "Gran Canaria"]
[Date "2025.04.19"]
[Round "8.12"]
[White "Sanz Wawer, Daniel"]
[Black "Bolivar Castro, Alejandro"]
[Result "1-0"]
[Annotator "RC"]
[ECO "A65"]
[WhiteElo "2316"]
[BlackElo "2006"]
[PlyCount "61"]
[EventDate "2025.04.13"]
[EventType "swiss"]
[EventCountry "ESP"]
[SourceTitle "playchess.com"]
[Source "ChessBase"]
[SourceQuality "1"]
[TimeControl "5400+30"]

1. e4 {[%emt 0:05:00]} d6 {[%emt 0:00:03]} 2. d4 {[%emt 0:00:07]} Nf6 {[%emt 0:00:03]} 3. f3 {[%emt 0:00:16]} g6 {[%emt 0:04:34]} 4. c4 {[%emt 0:00:06]} Bg7 {[%emt 0:00:12]} 5. Nc3 {[%emt 0:00:06]} O-O {[%emt 0:00:09]} 6. Nge2 {[%emt 0:00:03]} c5 {[%emt 0:00:10]} 7. d5 {[%emt 0:00:04]} e6 {[%emt 0:00:04]} 8. Ng3 {[%emt 0:00:05]} exd5 {[%emt 0:00:03]} 9. cxd5 {[%emt 0:00:07]} a6 {[%emt 0:00:02]} 10. a4 {[%emt 0:00:06]} h5 {[%emt 0:00:08]} 11. Bg5 {[%emt 0:00:10]} Nbd7 {[%emt 0:00:04]} 12. Be2 {[%emt 0:00:28]} Qc7 {[%emt 0:00:04]} 13. O-O {[%emt 0:00:28]} c4 {[%emt 0:00:17]} 14. Be3 {[%emt 0:08:49]} Rb8 {[%emt 0:04:37]} 15. a5 {[%emt 0:03:07]} h4 {[%emt 0:00:30]} 16. Nh1 {[%emt 0:00:06]} Nc5 {[%emt 0:00:25]} 17. Nf2 {[%emt 0:03:11]} Bd7 {[%emt 0:06:44]} 18. Ra2 {[%emt 0:22:01]} Rfe8 {[%emt 0:06:07]} 19. Qc2 {[%emt 0:02:17]} Bb5 {[%emt 0:08:23]} 20. Bg5 {[%emt 0:07:08]} Nb3 {[%emt 0:19:40]} 21. Bxh4 {[%emt 0:00:32]} Nxa5 {[%emt 0:01:24]} 22. Nxb5 {[%emt 0:05:55]} axb5 {[%emt 0:47:47]} 23. Qc3 {[%emt 0:04:26]} b4 {[%emt 0:00:00]} 24. Qxb4 {[%emt 0:00:19]} b6 {[%emt 0:00:00]} 25. Rd1 {[%emt 0:02:02]} Nd7 {[%emt 0:00:00]} 26. Bg3 {[%emt 0:12:12]} f5 {[%emt 0:00:00]} 27. Bxd6 {[%emt 0:01:56]} Qc8 {[%emt 0:00:00]} 28. Bxb8 {[%emt 0:01:28]} Qxb8 {[%emt 0:00:00]} 29. Bxc4 {[%emt 0:01:27]} Be5 {[%emt 0:00:00]} 30. d6+ {[%emt 0:00:42]} Kg7 {[%emt 0:00:00]} 31. Bb5 {[%emt 0:00:35]} 1-0

[Event "17th Memorial Lezcano Montalvo 2025"]
[Site "Gran Canaria"]
[Date "2025.04.19"]
[Round "8.13"]
[White "Bethencourt Hernandez, Alberto"]
[Black "Yelisieiev, Yevhenii"]
[Result "0-1"]
[Annotator "RC"]
[ECO "B52"]
[WhiteElo "2122"]
[BlackElo "2413"]
[PlyCount "140"]
[EventDate "2025.04.13"]
[EventType "swiss"]
[EventCountry "ESP"]
[SourceTitle "playchess.com"]
[Source "ChessBase"]
[SourceQuality "1"]
[TimeControl "5400+30"]

1. e4 {[%emt 0:05:49]} c5 {[%emt 0:00:09]} 2. Nf3 {[%emt 0:00:14]} d6 {[%emt 0:00:05]} 3. Bb5+ {[%emt 0:00:07]} Bd7 {[%emt 0:00:04]} 4. Bxd7+ {[%emt 0:00:11]} Nxd7 {[%emt 0:00:05]} 5. c4 {[%emt 0:00:24]} Ngf6 {[%emt 0:02:35]} 6. Nc3 {[%emt 0:00:10]} e6 {[%emt 0:00:47]} 7. O-O {[%emt 0:01:59]} a6 {[%emt 0:00:28]} 8. a4 {[%emt 0:00:17]} Ne5 {[%emt 0:02:45]} 9. a5 {[%emt 0:07:08]} Nfd7 {[%emt 0:05:46]} 10. d3 {[%emt 0:13:09]} Be7 {[%emt 0:00:48]} 11. Nxe5 {[%emt 0:07:29]} dxe5 {[%emt 0:00:23]} 12. f4 {[%emt 0:00:06]} exf4 {[%emt 0:04:24]} 13. Bxf4 {[%emt 0:00:07]} Bf6 {[%emt 0:01:35]} 14. Bd6 {[%emt 0:05:27]} Be5 {[%emt 0:13:48]} 15. Qh5 {[%emt 0:02:40]} g6 {[%emt 0:03:13]} 16. Qf3 {[%emt 0:00:08]} Qf6 {[%emt 0:11:35]} 17. Qxf6 {[%emt 0:02:10]} Bxf6 {[%emt 0:00:04]} 18. Rxf6 {[%emt 0:15:25]} Nxf6 {[%emt 0:00:06]} 19. Bxc5 {[%emt 0:00:03]} Nd7 {[%emt 0:04:10]} 20. Bd6 {[%emt 0:00:09]} f6 {[%emt 0:03:20]} 21. Ra3 {[%emt 0:05:42]} Ne5 {[%emt 0:03:11]} 22. Na4 {[%emt 0:03:19]} Nc6 {[%emt 0:10:39]} 23. Nc5 {[%emt 0:01:11]} O-O-O {[%emt 0:01:27]} 24. Bg3 {[%emt 0:01:35]} e5 {[%emt 0:06:13]} 25. Rb3 {[%emt 0:02:08]} Nxa5 {[%emt 0:01:11]} 26. Rb6 {[%emt 0:00:05]} Nc6 {[%emt 0:01:01]} 27. Kf2 {[%emt 0:03:37]} h5 {[%emt 0:02:26]} 28. Ke3 {[%emt 0:00:05]} h4 {[%emt 0:04:40]} 29. Be1 {[%emt 0:00:06]} h3 {[%emt 0:01:11]} 30. g4 {[%emt 0:02:41]} Rh7 {[%emt 0:00:01]} 31. Bg3 {[%emt 0:05:07]} Kb8 {[%emt 0:03:03]} 32. Nxb7 {[%emt 0:04:24]} Rxb7 {[%emt 0:00:10]} 33. Rxc6 {[%emt 0:00:12]} Rb3 {[%emt 0:00:18]} 34. Rxf6 {[%emt 0:00:03]} Rdxd3+ {[%emt 0:00:51]} 35. Ke2 {[%emt 0:00:05]} Rxg3 {[%emt 0:02:19]} 36. hxg3 {[%emt 0:00:04]} h2 {[%emt 0:00:39]} 37. Rf8+ {[%emt 0:00:59]} Kb7 {[%emt 0:00:06]} 38. Rh8 {[%emt 0:00:04]} Rxb2+ {[%emt 0:00:04]} 39. Kd3 {[%emt 0:03:37]} Kb6 {[%emt 0:01:06]} 40. g5 {[%emt 0:03:37]} a5 {[%emt 0:01:48]} 41. Kc3 {[%emt 0:00:40]} Rg2 {[%emt 0:00:07]} 42. g4 {[%emt 0:00:38]} Rg3+ {[%emt 0:00:14]} 43. Kd2 {[%emt 0:03:57]} Kc5 {[%emt 0:00:02]} 44. Rxh2 {[%emt 0:00:22]} Rxg4 {[%emt 0:00:20]} 45. Rh8 {[%emt 0:01:37]} Kxc4 {[%emt 0:00:07]} 46. Ra8 {[%emt 0:00:07]} Kd4 {[%emt 0:00:34]} 47. Rxa5 {[%emt 0:01:09]} Kxe4 {[%emt 0:00:27]} 48. Ke2 {[%emt 0:01:41]} Rg2+ {[%emt 0:00:09]} 49. Kf1 {[%emt 0:00:01]} Rxg5 {[%emt 0:00:08]} 50. Ke2 {[%emt 0:00:01]} Kf4 {[%emt 0:14:48]} 51. Ra8 {[%emt 0:00:56]} e4 {[%emt 0:00:00]} 52. Rg8 {[%emt 0:00:12]} Rg2+ {[%emt 0:00:00]} 53. Kf1 {[%emt 0:00:06]} Rg3 {[%emt 0:00:00]} 54. Ke2 {[%emt 0:00:18]} g5 {[%emt 0:00:00]} 55. Rf8+ {[%emt 0:01:36]} Kg4 {[%emt 0:00:00]} 56. Re8 {[%emt 0:00:05]} e3 {[%emt 0:00:00]} 57. Rh8 {[%emt 0:00:38]} Rh3 {[%emt 0:00:00]} 58. Rg8 {[%emt 0:00:05]} Kh4 {[%emt 0:00:00]} 59. Rh8+ {[%emt 0:01:10]} Kg3 {[%emt 0:00:00]} 60. Rg8 {[%emt 0:00:03]} g4 {[%emt 0:00:00]} 61. Kxe3 {[%emt 0:02:08]} Kg2+ {[%emt 0:00:00]} 62. Kf4 {[%emt 0:01:34]} Rf3+ {[%emt 0:00:00]} 63. Kg5 {[%emt 0:00:14]} g3 {[%emt 0:00:00]} 64. Kg4 {[%emt 0:00:02]} Ra3 {[%emt 0:00:00]} 65. Rb8 {[%emt 0:01:13]} Ra4+ {[%emt 0:00:00]} 66. Kf5 {[%emt 0:00:06]} Kh2 {[%emt 0:00:00]} 67. Rh8+ {[%emt 0:00:17]} Kg1 {[%emt 0:00:00]} 68. Ke5 {[%emt 0:00:51]} g2 {[%emt 0:00:00]} 69. Rh7 {[%emt 0:00:20]} Kf2 {[%emt 0:00:00]} 70. Rf7+ {[%emt 0:00:05]} Kg3 {[%emt 0:10:00]} 0-1

[Event "17th Memorial Lezcano Montalvo 2025"]
[Site "Gran Canaria"]
[Date "2025.04.19"]
[Round "8.14"]
[White "Ambartsumova, Karina"]
[Black "Hu, Jiani"]
[Result "1-0"]
[Annotator "RC"]
[ECO "E01"]
[WhiteElo "2405"]
[BlackElo "2091"]
[PlyCount "141"]
[EventDate "2025.04.13"]
[EventType "swiss"]
[EventCountry "ESP"]
[SourceTitle "playchess.com"]
[Source "ChessBase"]
[SourceQuality "1"]
[TimeControl "5400+30"]

1. c4 {[%emt 0:00:06]} e6 {[%emt 0:00:36]} 2. Nf3 {[%emt 0:00:55]} Nf6 {[%emt 0:00:34]} 3. d4 {[%emt 0:02:37]} d5 {[%emt 0:00:26]} 4. Nc3 {[%emt 0:04:57]} c6 {[%emt 0:02:16]} 5. g3 {[%emt 0:05:41]} Ne4 {[%emt 0:07:45]} 6. Bg2 {[%emt 0:08:06]} f5 {[%emt 0:05:32]} 7. Bf4 {[%emt 0:01:58]} Bd6 {[%emt 0:01:09]} 8. Qc2 {[%emt 0:07:32]} O-O {[%emt 0:01:08]} 9. e3 {[%emt 0:04:11]} Qe7 {[%emt 0:09:43]} 10. O-O {[%emt 0:11:17]} Nd7 {[%emt 0:01:40]} 11. a3 {[%emt 0:07:23]} Ndf6 {[%emt 0:06:30]} 12. c5 {[%emt 0:01:40]} Bxf4 {[%emt 0:11:35]} 13. exf4 {[%emt 0:00:15]} b6 {[%emt 0:02:09]} 14. Nxe4 {[%emt 0:12:40]} Nxe4 {[%emt 0:11:40]} 15. cxb6 {[%emt 0:03:41]} axb6 {[%emt 0:01:06]} 16. Qxc6 {[%emt 0:00:22]} Bd7 {[%emt 0:00:38]} 17. Qxb6 {[%emt 0:04:09]} Rab8 {[%emt 0:01:53]} 18. Qa7 {[%emt 0:00:49]} Ra8 {[%emt 0:02:02]} 19. Qc7 {[%emt 0:00:17]} Rfc8 {[%emt 0:00:45]} 20. Qe5 {[%emt 0:00:22]} Rc2 {[%emt 0:00:44]} 21. b4 {[%emt 0:04:42]} Bb5 {[%emt 0:04:11]} 22. Rac1 {[%emt 0:02:07]} Ra2 {[%emt 0:10:53]} 23. Rc7 {[%emt 0:02:39]} Qf6 {[%emt 0:00:26]} 24. Rfc1 {[%emt 0:00:18]} h6 {[%emt 0:04:40]} 25. Rc8+ {[%emt 0:04:32]} Rxc8 {[%emt 0:00:14]} 26. Rxc8+ {[%emt 0:00:04]} Kh7 {[%emt 0:00:08]} 27. h3 {[%emt 0:00:23]} Qxe5 {[%emt 0:04:03]} 28. Nxe5 {[%emt 0:01:24]} Rxa3 {[%emt 0:04:34]} 29. Rb8 {[%emt 0:04:07]} Nc3 {[%emt 0:01:11]} 30. Bf3 {[%emt 0:03:13]} Be2 {[%emt 0:01:31]} 31. h4 {[%emt 0:01:06]} Bxf3 {[%emt 0:01:14]} 32. Nxf3 {[%emt 0:00:01]} Ne4 {[%emt 0:00:14]} 33. Ne5 {[%emt 0:01:22]} h5 {[%emt 0:00:20]} 34. b5 {[%emt 0:01:29]} Ra1+ {[%emt 0:00:48]} 35. Kg2 {[%emt 0:00:04]} Ra2 {[%emt 0:00:26]} 36. Nd3 {[%emt 0:00:41]} Rd2 {[%emt 0:00:35]} 37. Nc5 {[%emt 0:00:13]} Rxf2+ {[%emt 0:01:23]} 38. Kg1 {[%emt 0:00:13]} Rb2 {[%emt 0:00:31]} 39. Nxe6 {[%emt 0:00:32]} Rb1+ {[%emt 0:00:46]} 40. Kg2 {[%emt 0:00:03]} Rb2+ {[%emt 0:00:18]} 41. Kf3 {[%emt 0:00:50]} Rb3+ {[%emt 0:00:13]} 42. Ke2 {[%emt 0:00:20]} Rxb5 {[%emt 0:02:12]} 43. Rxb5 {[%emt 0:01:01]} Nc3+ {[%emt 0:00:04]} 44. Kd3 {[%emt 0:00:11]} Nxb5 {[%emt 0:00:04]} 45. Kc2 {[%emt 0:01:36]} Kg6 {[%emt 0:00:24]} 46. Kb3 {[%emt 0:00:27]} Kf7 {[%emt 0:01:04]} 47. Kb4 {[%emt 0:00:12]} Nd6 {[%emt 0:00:20]} 48. Ng5+ {[%emt 0:00:52]} Kf6 {[%emt 0:01:13]} 49. Kc5 {[%emt 0:00:02]} Ne4+ {[%emt 0:00:21]} 50. Kxd5 {[%emt 0:00:08]} Nxg3 {[%emt 0:00:25]} 51. Kc6 {[%emt 0:01:06]} Ke7 {[%emt 0:00:51]} 52. d5 {[%emt 0:00:40]} Ne4 {[%emt 0:00:29]} 53. Kc7 {[%emt 0:00:37]} Nd6 {[%emt 0:00:22]} 54. Nf3 {[%emt 0:00:15]} Ne8+ {[%emt 0:00:39]} 55. Kc6 {[%emt 0:00:05]} Nd6 {[%emt 0:00:28]} 56. Nd4 {[%emt 0:00:23]} g6 {[%emt 0:00:27]} 57. Nf3 {[%emt 0:00:15]} Ne4 {[%emt 0:00:34]} 58. Kc7 {[%emt 0:01:15]} Nd6 {[%emt 0:00:27]} 59. Ne5 {[%emt 0:00:10]} Nb5+ {[%emt 0:00:13]} 60. Kc6 {[%emt 0:00:37]} Nd4+ {[%emt 0:00:15]} 61. Kc5 {[%emt 0:00:19]} Nb3+ {[%emt 0:00:12]} 62. Kc4 {[%emt 0:00:31]} Nd2+ {[%emt 0:00:24]} 63. Kd3 {[%emt 0:00:37]} Ne4 {[%emt 0:01:23]} 64. Kd4 {[%emt 0:00:03]} Nf6 {[%emt 0:00:22]} 65. Kc5 {[%emt 0:00:21]} Ne4+ {[%emt 0:00:45]} 66. Kc6 {[%emt 0:00:05]} g5 {[%emt 0:00:29]} 67. fxg5 {[%emt 0:00:30]} Kd8 {[%emt 0:01:03]} 68. d6 {[%emt 0:00:29]} f4 {[%emt 0:00:00]} 69. Nf7+ {[%emt 0:00:30]} Ke8 {[%emt 0:00:10]} 70. d7+ {[%emt 0:00:09]} Kxf7 {[%emt 0:00:15]} 71. d8=Q {[%emt 0:00:08]} 1-0